bitfinex/quotes_ETHUSD_20220218
["timestamp","ask_amount","ask_price","bid_price","bid_amount"]
[1645227235937,2.6944916,2785.5,2785.0,15.772482]
[1645227236138,2.6944916,2785.5,2785.2,0.00202443]
[1645227236339,1.0,2785.4,2785.2,0.00202443]
[1645227236643,1.3,2785.4,2785.2,0.00202443]
[1645227237041,1.3,2785.4,2785.0,15.772482]
[1645227237238,1.3,2785.4,2785.2,0.00202447]
[1645227237640,0.89826,2785.3,2785.2,0.00202447]
[1645227238143,0.89826,2785.3,2784.4,0.00430806]
[1645227238340,1.7966464,2785.1,2784.7,0.00809922]
[1645227239199,0.89832,2785.1,2784.7,0.00809922]
[1645227239393,1.19832,2785.1,2784.2,0.00430806]
[1645227239595,1.14832,2785.1,2784.8,0.00202476]
[1645227240394,0.25,2785.1,2784.8,0.00202476]
[1645227240593,0.25,2785.1,2784.4,0.00430806]
[1645227240792,0.25,2785.1,2784.8,0.00202472]
[1645227241393,0.8983,2785.0,2784.8,0.00202472]
[1645227241799,0.8983,2785.0,2784.4,0.00430806]
[1645227242092,0.8983,2785.0,2784.8,0.00202476]
[1645227242945,0.8983,2785.0,2784.4,0.00430806]
[1645227243146,0.8983,2785.0,2784.8,0.00202476]
[1645227243740,0.89834,2784.9,2784.8,0.00202476]
[1645227243943,0.8983,2785.0,2784.9,0.7286179]
[1645227244540,1.9760736,2785.3,2784.9,0.7286179]
[1645227244541,1.975874,2785.3,2784.9,0.7286179]
[1645227244741,1.796474,2785.3,2784.9,0.7286179]
[1645227244941,1.79646,2785.3,2784.9,0.7286179]
[1645227245141,0.1794,2785.4,2784.9,0.7286179]
[1645227245341,0.1794,2785.8,2784.9,1.6267079]
[1645227245544,1.97568,2785.8,2784.9,1.6267079]
[1645227246343,0.89809,2785.7,2784.9,0.7286179]
[1645227246588,3.77198,2785.8,2785.0,1.52513294]
[1645227246589,1.79651,2785.5,2785.0,1.52513294]
[1645227246992,2.79651,2785.5,2784.9,0.7286179]
[1645227247190,2.79651,2785.5,2785.0,1.52514798]
[1645227247690,3.69476,2785.5,2784.9,0.7286179]
[1645227247887,0.89826,2785.4,2784.9,0.7286179]
[1645227248089,0.89826,2785.4,2785.1,0.00156899]
[1645227248491,1.19826,2785.4,2785.1,0.00156899]
[1645227248894,1.19826,2785.4,2785.0,1.52520994]
[1645227249292,1.19826,2785.4,2785.1,0.00192058]
[1645227250192,2.09647,2785.4,2785.0,1.52520994]
[1645227250435,2.09647,2785.4,2785.1,0.00192058]
[1645227251237,1.19826,2785.4,2785.1,0.00192058]
[1645227251437,1.19826,2785.4,2785.0,1.52520994]
[1645227251636,1.19826,2785.4,2785.1,0.00192058]
[1645227251837,2.0965753,2785.4,2785.1,0.00192058]
[1645227252535,2.0965753,2785.4,2784.9,0.7286179]
[1645227252736,0.89827,2785.3,2784.9,0.7286179]
[1645227252936,0.3,2785.2,2785.1,0.00159237]
[1645227253736,0.3,2785.2,2784.9,0.7286179]
[1645227253737,1.19831,2785.2,2784.9,0.7286179]
[1645227253937,2.0966124,2785.2,2784.9,0.7286179]
[1645227254192,2.0966124,2785.2,2785.0,0.00159243]
[1645227254392,1.19831,2785.2,2785.0,104.78487543]
[1645227254792,0.3,2785.4,2785.0,104.78487543]
[1645227254793,1.19818,2785.4,2785.0,104.78487543]
[1645227255093,1.19818,2785.4,2785.0,104.783283]
[1645227255292,1.19818,2785.4,2785.1,3.5]
[1645227255293,0.3,2785.4,2785.1,3.5]
[1645227255494,0.3,2785.4,2785.2,1.52512569]
[1645227255690,1.3822,2785.8,2785.2,1.52512569]
[1645227255892,1.2028,2785.8,2785.3,3.5]
[1645227256092,1.0,2786.0,2785.0,104.78487546]
[1645227256093,0.1794,2785.9,2785.1,3.5]
[1645227256294,0.1794,2785.9,2785.2,1.52502435]
[1645227256495,1.7962,2785.7,2785.4,0.00166607]
[1645227257392,1.7962,2785.7,2785.0,104.783283]
[1645227257834,3.5926392,2785.7,2785.4,0.00166604]
[1645227258534,3.5926392,2785.7,2785.1,1.52522006]
[1645227258735,1.79639,2785.6,2785.2,1.52522006]
[1645227258933,0.8982836,2785.5,2785.4,0.00166604]
[1645227259136,1.8982836,2785.5,2784.6,0.00430806]
[1645227259339,1.8982836,2785.5,2784.4,0.00430806]
[1645227259340,16.92245116,2785.2,2784.4,0.00430806]
[1645227259539,11.92245116,2784.9,2784.1,0.00430806]
[1645227259740,11.01,2784.7,2783.9,0.00430806]
[1645227259936,11.01,2784.7,2783.7,0.00430806]
[1645227259937,1.81135936,2784.5,2783.7,0.00430806]
[1645227260138,0.89897,2784.4,2783.7,0.00430806]
[1645227260337,11.01,2784.3,2783.4,0.00430806]
[1645227260541,12.8081095,2784.0,2783.2,0.00430806]
[1645227260741,0.89905,2783.8,2783.0,0.00430806]
[1645227261141,0.89905,2783.8,2782.7,0.00430806]
[1645227261342,0.89905,2783.8,2782.8,0.00430806]
[1645227261789,0.89904,2783.4,2782.8,0.00430806]
[1645227261988,0.89904,2783.4,2782.6,0.00430806]
[1645227261989,2.69705,2783.4,2782.6,0.00430806]
[1645227262791,0.89901,2783.3,2782.6,0.00430806]
[1645227262992,11.90901,2783.3,2782.6,0.00430806]
[1645227263295,11.01,2783.1,2782.3,0.00430806]
[1645227263589,11.01,2783.1,2782.1,0.00430806]
[1645227263791,11.01,2783.1,2782.8,0.00200533]
[1645227263990,0.53935,2783.0,2782.8,0.00200533]
[1645227264192,11.1896,2783.0,2782.8,0.00200533]
[1645227264389,0.35975,2782.9,2782.8,0.00200533]
[1645227264590,11.90932,2782.9,2781.8,0.00430806]
[1645227264789,0.89928,2782.6,2782.3,0.00800261]
[1645227264994,4.49659,2783.1,2782.3,0.00800261]
[1645227264995,4.20576892,2784.2,2783.9,55.22708112]
[1645227265336,37.74475098,2784.5,2783.9,36.59978096]
[1645227265337,18.1656753,2784.0,2783.9,36.59978096]
[1645227265533,18.1656753,2784.0,2783.9,33.38273827]
[1645227265534,20.8631853,2784.0,2783.9,33.38273827]
[1645227265733,20.8631853,2784.0,2783.9,7.97415363]
[1645227265734,15.88845428,2784.0,2783.9,7.97415363]
[1645227265936,3.29832,2783.9,2782.7,0.00430806]
[1645227266135,3.29832,2783.9,2782.1,5.0]
[1645227266136,1.79832,2783.6,2783.4,0.00799959]
[1645227266436,1.5,2783.4,2782.2,0.00430806]
[1645227266635,3.6741,2783.3,2782.2,0.00430806]
[1645227266837,0.1741,2783.3,2782.2,0.00430806]
[1645227267234,1.97258,2783.3,2782.2,0.00430806]
[1645227267436,0.899237,2783.1,2782.2,0.00430806]
[1645227268238,0.8993,2782.9,2782.2,0.00430806]
[1645227268838,0.89928,2782.7,2782.3,0.99925575]
[1645227269099,1.79855,2782.8,2782.7,0.72882155]
[1645227270085,2.39855,2782.8,2782.7,0.72882155]
[1645227270293,3.39855,2782.8,2782.7,0.72882155]
[1645227270489,3.39855,2782.8,2782.2,0.01225113]
[1645227270490,0.51713652,2782.7,2782.2,0.00794307]
[1645227270688,1.79948,2782.5,2781.8,0.00430806]
[1645227270888,0.1797,2782.4,2782.2,0.00794307]
[1645227271087,0.1797,2782.4,2781.0,0.00430806]
[1645227271388,0.8997,2781.9,2781.0,0.00430806]
[1645227271691,2.69877,2781.7,2781.0,0.00430806]
[1645227271886,2.09907,2781.7,2781.5,6.13617915]
[1645227272087,0.1797,2782.4,2781.5,6.13617915]
[1645227272387,0.1797,2782.5,2781.5,0.00430806]
[1645227272586,0.89932,2782.1,2781.6,0.00430806]
[1645227272841,0.89932,2782.1,2781.2,5.0]
[1645227272842,1.19944,2782.1,2781.3,0.00430806]
[1645227273437,0.3,2782.1,2781.7,5.0]
[1645227273636,1.1993,2782.1,2781.3,3.50668579]
[1645227274435,1.1993,2782.1,2781.3,8.50430806]
[1645227275441,1.1993,2782.1,2781.3,9.40357806]
[1645227275640,1.1993,2782.1,2781.6,0.00167536]
[1645227276606,1.97812,2782.6,2781.8,1.16963313]
[1645227276791,1.97812,2782.6,2782.1,5.0]
[1645227276792,0.3,2782.6,2782.1,5.0]
[1645227276990,0.00237623,2782.7,2782.5,5.0]
[1645227277692,0.90150623,2782.7,2782.5,5.0]
[1645227277892,0.90150623,2782.7,2782.2,0.00430806]
[1645227277893,0.89913,2782.7,2782.2,0.00430806]
[1645227278097,1.20150674,2782.7,2782.2,0.00430806]
[1645227278294,1.20150674,2782.7,2782.1,0.00167505]
[1645227278295,0.3,2782.6,2782.1,0.00167505]
[1645227278694,0.30237674,2782.7,2782.1,0.00167505]
[1645227278896,0.89929,2782.5,2782.1,0.00167505]
[1645227279097,0.89929,2782.5,2782.1,0.00430806]
[1645227279297,1.19929,2782.5,2782.1,0.00602538]
[1645227279495,2.19929,2782.5,2782.1,0.00602538]
[1645227279695,2.19929,2782.5,2782.1,0.00171732]
[1645227280336,0.89928,2782.3,2781.9,0.00430806]
[1645227280532,0.89928,2782.3,2782.1,0.00171732]
[1645227280739,1.19928,2782.3,2782.1,0.00171732]
[1645227281233,3.09858,2782.3,2782.1,0.00171732]
[1645227281435,3.09858,2782.3,2781.9,0.00430806]
[1645227281632,3.09858,2782.3,2782.1,0.00171732]
[1645227282434,3.9979646,2782.3,2782.1,0.00171732]
[1645227282635,2.19928,2782.3,2781.9,0.00430806]
[1645227282835,2.19928,2782.3,2782.1,0.00157464]
[1645227283936,2.19928,2782.3,2781.9,0.00430806]
[1645227284193,2.49928,2782.3,2782.1,0.00157464]
[1645227284994,2.49928,2782.3,2781.9,0.00430806]
[1645227285397,2.49928,2782.3,2782.1,0.00157464]
[1645227285595,0.89928,2782.3,2782.1,0.00157464]
[1645227285895,0.18204635,2782.7,2782.1,0.00157464]
[1645227285896,0.90146635,2782.7,2782.2,5.0]
[1645227286295,1.6066,2783.2,2782.6,5.0]
[1645227286296,0.1796,2783.2,2782.6,5.0]
[1645227286494,0.1796,2783.5,2782.6,0.00430806]
[1645227286698,3.5,2784.0,2782.4,0.90323806]
[1645227286699,0.00235615,2782.7,2782.4,0.90323806]
[1645227286895,0.00235615,2782.7,2782.6,5.0]
[1645227287394,0.1796,2783.9,2782.6,5.0]
[1645227287593,1.2385,2784.1,2782.9,0.94229306]
[1645227287594,1.97735,2784.0,2782.9,0.94229306]
[1645227287840,1.97735,2784.0,2783.1,5.0]
[1645227288040,0.8988882,2783.9,2783.2,0.00430806]
[1645227288239,0.1796,2783.8,2783.0,0.00430806]
[1645227288644,0.89884,2783.5,2782.9,5.0]
[1645227288841,0.90119611,2783.5,2783.0,0.00430806]
[1645227289043,2.20119611,2783.5,2783.0,0.00430806]
[1645227289242,0.3,2783.4,2783.0,0.00430806]
[1645227290043,0.00235398,2783.3,2783.0,0.00430806]
[1645227290244,0.00235398,2783.3,2782.9,5.0]
[1645227290446,0.00235398,2783.3,2783.2,5.0]
[1645227291048,4.72162,2784.3,2783.2,5.0]
[1645227291049,4.54202,2784.3,2783.2,5.0]
[1645227291250,0.0022873,2783.4,2783.3,0.00430806]
[1645227291451,0.0022873,2783.4,2783.3,5.0]
[1645227291695,0.0022873,2783.4,2783.0,3.5]
[1645227291893,0.0022873,2783.4,2783.0,9.39875]
[1645227292095,0.0022873,2783.4,2783.0,8.5]
[1645227292294,4.54202,2784.3,2783.0,8.5]
[1645227292295,0.3,2784.1,2783.0,8.5]
[1645227292496,0.00228731,2783.3,2783.1,0.00430806]
[1645227292695,0.00228731,2783.3,2783.0,8.5]
[1645227293497,0.89879,2783.9,2783.0,5.0]
[1645227293696,0.00228781,2783.3,2783.1,0.00430806]
[1645227293897,0.00228781,2783.3,2783.0,8.5]
[1645227294295,0.00228781,2783.3,2783.2,5.0]
[1645227294495,0.00228781,2783.3,2783.2,8.5]
[1645227294696,2.15649,2784.7,2783.2,8.5]
[1645227294697,1.0,2784.5,2783.2,8.5]
[1645227294896,0.8986503,2784.6,2783.2,8.5]
[1645227294897,1.1796,2784.6,2783.7,5.0]
[1645227295098,4.467,2785.2,2784.1,5.0]
[1645227295099,0.1794,2785.0,2784.1,5.0]
[1645227295348,0.1794,2785.1,2783.6,6.47190806]
[1645227295550,0.89841,2785.1,2784.0,5.89843]
[1645227295750,0.1794,2785.2,2784.1,3.49844954]
[1645227295948,1.79686,2785.4,2784.1,3.5]
[1645227295949,0.89839,2784.9,2784.1,3.5]
[1645227296149,0.00213023,2784.7,2784.2,5.0]
[1645227297150,0.1794,2785.2,2784.2,5.0]
[1645227297351,0.00213014,2784.6,2784.2,5.0]
[1645227298351,1.19838,2784.9,2784.2,5.0]
[1645227298552,0.00213015,2784.5,2784.2,5.89835]
[1645227298753,0.00213015,2784.5,2784.3,3.5]
[1645227299192,0.00213015,2784.5,2784.2,5.89835]
[1645227299387,0.89831,2785.1,2784.2,0.89835]
[1645227299590,0.89831,2785.1,2784.3,4.39831]
[1645227299788,0.00214067,2784.5,2784.3,4.39831]
[1645227299989,0.00214067,2784.5,2784.2,5.0]
[1645227300691,0.6,2785.1,2784.2,5.0]
[1645227300890,0.0021407,2784.5,2784.2,5.0]
[1645227301090,0.9006507,2784.5,2784.2,5.0]
[1645227301293,1.5006507,2784.5,2784.2,5.0]
[1645227301892,1.49851,2784.5,2784.2,5.0]
[1645227302090,1.5006507,2784.5,2784.2,5.0]
[1645227302491,1.5006507,2784.5,2783.8,7.3257]
[1645227302694,0.89868,2784.3,2783.5,0.00430806]
[1645227302950,12.31,2784.3,2783.3,0.00430806]
[1645227303144,0.1796,2784.2,2783.1,0.00430806]
[1645227303345,0.89891,2784.1,2783.1,0.00430806]
[1645227303646,0.00214008,2784.0,2783.4,1.0176832]
[1645227303844,0.64873,2783.8,2783.4,1.02199126]
[1645227304045,0.00214008,2784.0,2783.4,1.0176832]
[1645227304247,0.3,2784.0,2783.4,1.02199126]
[1645227304442,1.19875,2784.0,2783.4,1.02199126]
[1645227304644,0.00214012,2783.7,2783.4,1.02199126]
[1645227305445,1.49875,2784.0,2783.4,1.02199126]
[1645227305650,0.00214013,2783.7,2783.4,1.02199126]
[1645227305948,0.00214013,2783.7,2783.3,5.0]
[1645227306145,0.00214013,2783.7,2783.0,4.40305806]
[1645227306345,0.00214013,2783.7,2783.1,5.00430806]
[1645227306594,2.99637,2783.9,2783.1,5.00430806]
[1645227306801,0.89882,2783.6,2783.2,0.00430806]
[1645227306998,0.00214022,2783.5,2783.2,0.92100565]
[1645227307796,1.79775,2783.7,2783.2,0.92100565]
[1645227307996,1.79775,2783.7,2783.1,5.00430806]
[1645227308195,0.00214023,2783.5,2783.1,5.00430806]
[1645227308398,0.00214023,2783.5,2783.1,5.0]
[1645227308596,0.00214023,2783.5,2782.9,0.00430806]
[1645227308795,0.00214023,2783.5,2782.9,5.00430806]
[1645227308997,0.89888,2783.4,2782.9,5.0]
[1645227309200,1.19888,2783.4,2782.9,5.00430806]
[1645227309400,2.49888,2783.4,2782.9,5.00430806]
[1645227309597,0.00214025,2783.3,2782.9,5.00430806]
[1645227309797,0.00214025,2783.3,2782.9,5.0]
[1645227310347,2.49896,2783.4,2782.9,5.0]
[1645227310546,0.90112853,2783.2,2782.9,5.00430806]
[1645227310752,1.50112853,2783.2,2782.9,5.0]
[1645227310945,2.50112853,2783.2,2782.9,5.0]
[1645227311145,2.50112853,2783.2,2782.7,5.00430806]
[1645227311347,2.50112853,2783.2,2782.5,0.06902578]
[1645227311348,3.40019853,2783.2,2782.5,0.06902578]
[1645227311550,3.40019853,2783.2,2782.3,0.00430806]
[1645227311551,2.49907,2783.2,2782.3,0.00430806]
[1645227311750,0.00214855,2783.1,2782.3,0.00430806]
[1645227311949,1.80045855,2783.1,2782.3,0.00430806]
[1645227312145,2.80045855,2783.1,2782.3,0.00430806]
[1645227312347,1.6,2783.0,2782.3,0.00430806]
[1645227312548,0.89914,2782.8,2782.3,0.00430806]
[1645227312950,0.9012886,2782.8,2782.3,0.00430806]
[1645227313849,0.89914,2782.8,2782.3,5.00430806]
[1645227314103,0.00214804,2782.7,2782.3,5.00430806]
[1645227314498,0.00214804,2782.7,2782.3,0.00430806]
[1645227314691,0.00214804,2782.7,2782.2,1.01428806]
[1645227314892,0.00214804,2782.7,2782.3,3.5]
[1645227315092,0.6,2783.0,2782.3,5.0]
[1645227315093,0.3,2783.0,2782.3,5.0]
[1645227315292,0.1796,2783.4,2782.4,0.00430806]
[1645227315293,0.00214918,2782.7,2782.4,0.00430806]
[1645227315495,0.89912,2782.6,2782.3,3.90430806]
[1645227315692,0.89912,2782.6,2782.2,1.01428806]
[1645227316093,0.89912,2782.6,2782.1,0.00160485]
[1645227316295,0.89912,2782.6,2782.0,3.90430806]
[1645227316493,0.89912,2782.6,2782.1,0.00160485]
[1645227316895,0.00214915,2782.7,2782.1,0.00160485]
[1645227317495,2.6975,2782.8,2782.0,3.90430806]
[1645227317697,0.3,2782.7,2782.1,0.00160485]
[1645227317971,0.30214861,2782.7,2782.1,0.00160485]
[1645227318163,1.48184861,2782.7,2782.1,0.00160485]
[1645227318363,3.5,2782.6,2782.1,0.00160485]
[1645227318565,0.89945,2782.5,2782.1,0.00160485]
[1645227318763,3.9797,2782.4,2781.4,2.7699]
[1645227318966,1.79906,2782.2,2782.1,0.00159995]
[1645227319162,2.09906,2782.2,2782.1,0.00159995]
[1645227319362,2.39906,2782.2,2782.1,0.00159995]
[1645227319969,0.89955,2781.8,2781.0,3.246]
[1645227320161,0.89955,2781.8,2780.9,3.90430806]
[1645227320364,0.3,2781.7,2781.4,0.00640139]
[1645227320764,1.0,2782.0,2781.4,0.00640139]
[1645227320765,1.6,2782.0,2781.4,0.00640139]
[1645227320964,0.3,2781.7,2781.4,0.00640139]
[1645227321163,4.1,2782.0,2780.9,3.90430806]
[1645227321364,0.89956,2781.4,2781.1,0.0064019]
[1645227322393,0.89956,2781.4,2780.9,3.90430806]
[1645227322590,0.89956,2781.4,2781.1,0.0016056]
[1645227323590,0.89956,2781.4,2780.9,3.90430806]
[1645227323795,0.89956,2781.4,2781.1,0.0016056]
[1645227323995,1.79894,2781.8,2781.2,0.85460063]
[1645227324194,0.1797,2782.5,2781.8,1.06956937]
[1645227324393,0.00214811,2782.7,2782.1,3.90430806]
[1645227324793,3.1092,2783.2,2781.8,1.06956937]
[1645227324996,0.00214866,2782.7,2782.1,3.90591311]
[1645227325195,0.89915,2782.6,2782.1,3.90591311]
[1645227325836,0.89915,2782.6,2782.1,3.90430806]
[1645227326238,0.89915,2782.6,2782.1,3.90590796]
[1645227326438,1.79859,2782.5,2782.1,3.90590796]
[1645227326637,2.69787,2782.5,2782.1,3.90590796]
[1645227326838,3.69787,2782.5,2782.1,3.90590796]
[1645227327136,3.69787,2782.5,2782.1,3.65430806]
[1645227327137,0.89929,2782.4,2782.1,3.65430806]
[1645227327337,1.89929,2782.4,2782.1,0.0015999]
[1645227327542,2.49929,2782.4,2782.1,0.0015999]
[1645227327739,3.34863,2782.4,2782.1,0.0015999]
[1645227327936,2.44929,2782.4,2782.1,0.0015999]
[1645227328137,2.44929,2782.4,2782.3,3.65430806]
[1645227328138,0.89929,2782.4,2782.3,3.65430806]
[1645227328339,0.89912,2782.6,2782.1,3.65430806]
[1645227328638,0.89912,2782.6,2782.1,3.65590796]
[1645227328937,0.89912,2782.6,2782.2,3.65430806]
[1645227330088,1.19912,2782.6,2782.2,3.65430806]
[1645227333335,1.49912,2782.6,2782.2,3.65430806]
[1645227334836,0.89924,2782.4,2782.2,3.65430806]
[1645227335241,1.49924,2782.4,2782.2,3.65430806]
[1645227335838,2.49924,2782.4,2782.2,3.65430806]
[1645227336038,2.49924,2782.4,2782.3,3.65430806]
[1645227337384,3.3986,2782.4,2782.1,0.00160086]
[1645227337986,3.3986,2782.4,2781.7,3.65430806]
[1645227338184,0.89936,2782.2,2782.1,0.00160086]
[1645227338586,1.19936,2782.2,2782.1,0.00160086]
[1645227338987,0.3,2782.2,2782.1,0.00160086]
[1645227339188,0.3,2782.2,2781.7,3.65430806]
[1645227339387,1.49919,2782.4,2782.0,0.00160089]
[1645227340437,2.49919,2782.4,2781.7,3.65430806]
[1645227340633,2.49919,2782.4,2782.1,0.00160085]
[1645227341633,0.89929,2782.2,2781.7,3.65430806]
[1645227341837,1.19929,2782.2,2782.1,0.00160085]
[1645227342737,1.19929,2782.2,2781.7,3.65430806]
[1645227342941,1.19929,2782.2,2782.0,0.00160087]
[1645227343340,0.3,2782.2,2782.0,0.00160087]
[1645227343540,0.3,2782.3,2782.0,0.00160087]
[1645227343739,0.4797,2782.5,2782.0,0.00160087]
[1645227344093,0.3,2782.5,2781.8,4.58279162]
[1645227344294,0.3,2782.6,2782.0,0.00160088]
[1645227344894,0.3,2782.6,2782.3,3.65430806]
[1645227346198,0.3,2782.6,2782.3,3.60430806]
[1645227346598,0.3,2782.6,2782.0,0.89905]
[1645227346599,0.3,2782.6,2782.5,3.60430806]
[1645227347100,1.90123755,2782.7,2782.5,3.60430806]
[1645227347299,1.90123755,2782.7,2782.6,3.60430806]
[1645227347300,0.90123755,2782.7,2782.6,3.60430806]
[1645227347499,0.89909,2782.7,2782.6,3.60430806]
[1645227347942,0.90123764,2782.7,2782.6,3.60430806]
[1645227348140,0.90123764,2782.7,2782.3,3.60430806]
[1645227348541,0.3,2782.6,2782.3,3.60430806]
[1645227348738,0.29872085,2782.6,2782.3,3.60430806]
[1645227349140,1.19797085,2782.6,2782.3,3.60430806]
[1645227349440,2.19797085,2782.6,2782.3,3.60430806]
[1645227349638,1.79851,2782.5,2782.3,3.60430806]
[1645227350041,1.79851,2782.5,2782.3,1.80579806]
[1645227353596,2.99640085,2782.6,2782.3,1.80579806]
[1645227353597,2.09721085,2782.6,2782.3,1.80579806]
[1645227354800,2.99640085,2782.6,2782.3,1.80579806]
[1645227357241,1.79862,2782.4,2782.3,1.80579806]
[1645227357643,2.09862,2782.4,2782.3,1.80579806]
[1645227358040,1.79862,2782.4,2782.3,1.80579806]
[1645227358243,3.1877,2782.6,2782.3,1.80579806]
[1645227358444,2.28851,2782.6,2782.3,1.80579806]
[1645227358640,0.3,2782.5,2782.3,1.80579806]
[1645227363348,1.79849,2782.6,2782.3,1.80579806]
[1645227365050,1.79849,2782.6,2782.3,0.20899806]
[1645227365451,0.89924,2782.6,2782.3,0.20899806]
[1645227365650,0.89924,2782.6,2782.1,1.00980716]
[1645227365851,0.89924,2782.6,2782.5,0.21505445]
[1645227366050,1.19924,2782.6,2782.5,0.21505445]
[1645227367095,1.19924,2782.6,2782.5,0.00605639]
[1645227371841,1.68926,2782.6,2782.5,0.00605639]
[1645227372045,1.68926,2782.6,2782.3,0.20899806]
[1645227372243,1.19917,2782.5,2782.3,0.20899806]
[1645227374297,0.89924,2782.6,2782.3,0.20899806]
[1645227374496,0.89924,2782.6,2782.5,0.20899806]
[1645227374896,1.19924,2782.6,2782.3,0.20899806]
[1645227375298,0.89921,2782.5,2782.3,0.20899806]
[1645227376298,1.19921,2782.5,2782.3,0.20899806]
[1645227376501,0.89921,2782.5,2782.3,0.20899806]
[1645227376702,1.14921,2782.5,2782.3,0.20899806]
[1645227376901,0.89921,2782.5,2782.3,0.20899806]
[1645227377099,0.84921,2782.5,2782.3,0.20899806]
[1645227378637,1.44921,2782.5,2782.3,0.20899806]
[1645227379738,0.84921,2782.5,2782.3,0.20899806]
[1645227379938,1.14921,2782.5,2782.3,0.20899806]
[1645227384698,0.84921,2782.5,2782.3,0.20899806]
[1645227384900,1.14921,2782.5,2782.3,0.20899806]
[1645227386151,1.79852,2782.4,2782.3,0.20899806]
[1645227389698,1.14921,2782.5,2782.3,0.20899806]
[1645227390093,1.44921,2782.5,2782.3,0.20899806]
[1645227390295,2.93923,2782.5,2782.1,0.0015976]
[1645227390501,1.3321887,2782.3,2782.1,0.0015976]
[1645227390695,0.89954,2782.1,2781.5,0.0042972]
[1645227390895,1.19954,2782.1,2781.6,1.52714485]
[1645227391094,2.98956,2782.1,2781.6,1.52714485]
[1645227391295,3.5,2782.0,2781.5,0.0042972]
[1645227391496,3.5,2782.0,2781.4,0.0063919]
[1645227391497,6.6313187,2782.0,2781.4,0.0063919]
[1645227391695,3.2788,2781.9,2781.4,0.0063919]
[1645227391896,3.3991,2781.9,2781.4,0.0063919]
[1645227392094,0.89956,2781.8,2781.3,0.0042972]
[1645227392300,1.38958,2781.8,2781.4,1.52726573]
[1645227392495,1.38958,2781.8,2781.2,0.0042972]
[1645227392695,0.89952,2781.6,2781.3,1.5272766]
[1645227392954,0.3,2781.5,2781.3,1.5315738]
[1645227393246,3.09901,2781.7,2781.1,0.21329526]
[1645227393247,0.3,2781.6,2781.1,0.21329526]
[1645227393447,0.3,2781.6,2781.2,1.52726245]
[1645227393847,1.38929,2781.8,2781.5,0.20899806]
[1645227393848,0.89927,2781.8,2781.5,0.20899806]
[1645227394049,0.89927,2781.8,2781.7,0.20899806]
[1645227394248,1.79857,2782.1,2781.7,0.20899806]
[1645227394448,2.935,2782.5,2782.3,0.88916031]
[1645227394648,3.18983407,2782.6,2782.0,0.20899806]
[1645227395050,2.69748,2782.5,2781.8,0.20899806]
[1645227395249,1.3321887,2782.4,2781.8,0.20899806]
[1645227395449,3.1309187,2782.4,2781.8,0.20899806]
[1645227395650,2.2314887,2782.3,2781.8,0.20899806]
[1645227395848,2.2314887,2782.3,2782.0,0.00195311]
[1645227395849,3.2314887,2782.3,2782.0,0.00195311]
[1645227396048,1.8993,2782.3,2782.2,0.20899806]
[1645227396249,4.4307787,2782.3,2782.0,0.00195311]
[1645227396449,0.89927,2782.2,2782.0,0.00195311]
[1645227396695,1.19927,2782.2,2782.0,0.00195311]
[1645227396899,1.19927,2782.2,2781.6,0.0042972]
[1645227396900,0.89933,2782.1,2781.6,0.0042972]
[1645227397096,0.89933,2782.1,2782.0,0.00195311]
[1645227397296,1.19933,2782.1,2782.0,0.00195311]
[1645227397796,1.68935,2782.1,2782.0,0.00195311]
[1645227398001,3.48808,2782.1,2781.7,0.0042972]
[1645227398194,3.18808,2782.1,2781.7,0.20899806]
[1645227398394,3.18808,2782.1,2781.9,0.00195315]
[1645227398395,0.3,2782.0,2781.9,0.00195315]
[1645227399299,0.89923,2781.9,2781.4,0.0042972]
[1645227399497,0.49227055,2782.6,2781.8,0.21095128]
[1645227399698,1.79832,2782.3,2781.8,0.21095128]
[1645227399896,0.49002,2782.2,2781.8,0.21095128]
[1645227400100,0.89929,2782.1,2781.8,0.00195322]
[1645227400549,0.89929,2782.1,2781.9,0.20899806]
[1645227401145,1.79847,2782.1,2781.9,0.20899806]
[1645227401349,2.09847,2782.1,2781.9,0.20899806]
[1645227401949,2.09847,2782.1,2781.9,0.21095124]
[1645227402551,2.09847,2782.1,2781.9,0.00195318]
[1645227402958,0.89934,2781.9,2781.6,0.21329526]
[1645227403152,0.89934,2781.9,2781.6,0.20899806]
[1645227403451,1.79868,2781.9,2781.6,0.20899806]
[1645227403853,0.89934,2781.9,2781.8,0.20899806]
[1645227412398,1.19934,2781.9,2781.8,0.20899806]
[1645227412596,0.89934,2781.9,2781.8,0.20899806]
[1645227414194,0.89934,2781.9,2781.8,0.20807024]
[1645227414997,0.89934,2781.9,2781.8,0.15807024]
[1645227416840,0.66972,2782.3,2781.8,0.15807024]
[1645227416841,0.89915,2782.2,2781.8,0.15807024]
[1645227417142,0.89915,2782.2,2781.7,0.00195329]
[1645227417143,0.00225082,2782.6,2782.1,0.15807024]
[1645227417344,2.9085,2783.1,2781.9,0.96628381]
[1645227417345,1.3321887,2782.9,2782.5,0.15807024]
[1645227417541,1.3321887,2782.9,2781.9,0.96628381]
[1645227417542,1.3321887,2782.9,2782.8,0.15807024]
[1645227417741,1.3321887,2783.0,2782.8,0.15807024]
[1645227417941,3.1302487,2783.0,2782.8,0.15807024]
[1645227418142,2.2312087,2782.9,2782.0,4.4846]
[1645227418345,2.2312087,2782.9,2782.6,0.15807024]
[1645227418639,1.3321887,2782.8,2782.6,0.15807024]
[1645227418840,1.79835,2782.7,2782.6,0.15807024]
[1645227423549,1.79835,2782.7,2782.0,4.48655311]
[1645227423745,0.89917,2782.6,2782.0,4.48655311]
[1645227423946,4.9288787,2782.7,2782.0,3.32895311]
[1645227424148,4.9288787,2782.7,2782.0,0.00195311]
[1645227424349,3.59669,2782.7,2782.0,0.00195311]
[1645227424547,4.9288787,2782.7,2781.9,0.96628381]
[1645227424749,0.00225109,2782.6,2782.0,0.00195311]
[1645227424949,0.00225109,2782.6,2782.5,0.15807024]
[1645227425749,0.89897,2782.9,2782.5,0.15807024]
[1645227425950,0.89897,2782.9,2781.9,0.96628381]
[1645227425951,0.00225113,2782.7,2782.0,0.00195311]
[1645227426155,2.69942113,2782.7,2782.6,0.15807024]
[1645227427002,1.79809,2782.7,2782.6,0.15807024]
[1645227427402,0.00225111,2782.8,2782.6,0.15807024]